bitfinex/quotes_BTCUSD_20240611
["timestamp","ask_amount","ask_price","bid_price","bid_amount"]
[1718079224071,0.02,67972.0,67968.0,0.04946774]
[1718079224296,0.02,67966.0,67964.0,0.1973]
[1718079224516,0.5,67970.0,67964.0,0.02979]
[1718079224517,0.52,67970.0,67964.0,0.02979]
[1718079224730,0.52,67970.0,67962.0,0.1006]
[1718079224731,0.02,67966.0,67962.0,0.1006]
[1718079225176,0.16431993,67965.0,67958.0,0.04920601]
[1718079225384,0.02,67963.0,67958.0,0.04920601]
[1718079225609,0.5,67970.0,67958.0,0.04920601]
[1718079225610,0.02,67959.0,67958.0,0.04920601]
[1718079225818,0.02,67959.0,67954.0,0.2065]
[1718079225819,0.02,67957.0,67954.0,0.2065]
[1718079226031,0.14431993,67957.0,67954.0,0.03043]
[1718079226244,0.14431993,67957.0,67950.0,0.0978]
[1718079228018,0.16431993,67957.0,67950.0,0.0978]
[1718079228285,0.02,67952.0,67950.0,0.1018]
[1718079228525,0.16414302,67957.0,67950.0,0.1018]
[1718079228769,0.01982309,67955.0,67951.0,0.0442571]
[1718079229003,0.14531993,67957.0,67951.0,0.0442571]
[1718079229459,0.16514302,67957.0,67951.0,0.0442571]
[1718079229670,0.14431993,67956.0,67951.0,0.0442571]
[1718079229884,0.01982309,67952.0,67951.0,0.0442571]
[1718079230328,0.14431993,67956.0,67951.0,0.0442571]
[1718079230535,0.14431993,67956.0,67950.0,0.1018]
[1718079230536,0.14431993,67956.0,67952.0,0.04118171]
[1718079230776,0.001,67957.0,67952.0,0.04118171]
[1718079231195,0.01982309,67960.0,67952.0,0.04118171]
[1718079231455,0.01982309,67966.0,67955.0,0.07215996]
[1718079231681,0.01982309,67973.0,67956.0,0.01133417]
[1718079231884,0.5,67977.0,67957.0,0.2094]
[1718079231885,0.01982309,67970.0,67957.0,0.2094]
[1718079232111,0.5,67977.0,67967.0,0.07215996]
[1718079232112,0.01982309,67977.0,67967.0,0.07215996]
[1718079232321,0.01982309,67970.0,67968.0,0.0949]
[1718079232527,0.01982309,67970.0,67969.0,0.00949]
[1718079232736,0.01982309,67973.0,67969.0,0.00949]
[1718079232938,0.01982309,67970.0,67969.0,0.00949]
[1718079233348,0.01982309,67974.0,67969.0,0.00949]
[1718079233574,0.16414302,67974.0,67969.0,0.00949]
[1718079233805,0.01982309,67971.0,67970.0,0.010439]
[1718079234286,0.01982309,67973.0,67970.0,0.010439]
[1718079235135,0.007,67971.0,67970.0,0.010439]
[1718079235547,0.02682309,67971.0,67970.0,0.011439]
[1718079235990,0.007,67971.0,67970.0,0.010439]
[1718079236195,0.02682309,67971.0,67970.0,0.010439]
[1718079236654,0.007,67971.0,67970.0,0.010439]
[1718079237279,0.02682309,67971.0,67970.0,0.010439]
[1718079237484,0.007,67971.0,67970.0,0.014439]
[1718079237733,0.01982309,67980.0,67970.0,0.010439]
[1718079237952,0.01,67994.0,67970.0,0.010439]
[1718079237953,0.01982309,67986.0,67976.0,0.07215996]
[1718079238165,0.147071,67995.0,67972.0,0.2098]
[1718079238166,0.01982309,67990.0,67972.0,0.2098]
[1718079238414,0.01982309,67986.0,67972.0,0.25956088]
[1718079238620,0.14431993,67989.0,67976.0,0.07215996]
[1718079238829,0.01982309,67985.0,67973.0,0.06755097]
[1718079239093,0.01982309,67973.0,67972.0,0.04976088]
[1718079239302,0.01982309,67974.0,67972.0,0.05376088]
[1718079239505,0.16414302,67974.0,67972.0,0.004]
[1718079239722,0.14431993,67974.0,67972.0,0.004]
[1718079239938,0.14431993,67974.0,67973.0,0.003]
[1718079239939,0.16414302,67974.0,67973.0,0.003]
[1718079240168,0.01982309,67977.0,67973.0,0.003]
[1718079240399,0.01982309,67977.0,67973.0,0.0184127]
[1718079240607,0.01982309,67978.0,67973.0,0.0184127]
[1718079240857,0.01982309,67980.0,67973.0,0.0184127]
[1718079241068,0.01982309,67978.0,67973.0,0.0184127]
[1718079241276,0.01982309,67977.0,67973.0,0.0154127]
[1718079241479,0.01982309,67976.0,67973.0,0.0154127]
[1718079241703,0.01982309,67978.0,67973.0,0.0154127]
[1718079242117,0.08,67988.0,67973.0,0.0154127]
[1718079242118,0.01982309,67991.0,67979.0,0.147103]
[1718079242344,0.1,68000.0,67984.0,0.07215996]
[1718079242554,0.14431993,67999.0,67984.0,0.07215996]
[1718079242775,0.1,68000.0,67992.0,0.2097]
[1718079242987,0.1,68000.0,67993.0,0.050256]
[1718079244658,0.101,68000.0,67993.0,0.201329]
[1718079245279,0.01982309,67999.0,67993.0,0.201329]
[1718079245482,0.101,68000.0,67993.0,0.201329]
[1718079245691,0.101,68000.0,67993.0,0.204329]
[1718079245904,0.101,68000.0,67994.0,0.0634729]
[1718079246328,0.01982309,67998.0,67994.0,0.0634729]
[1718079246538,0.01982309,67999.0,67994.0,0.0634729]
[1718079247165,0.1,68000.0,67994.0,0.0634729]
[1718079247166,0.01982309,67997.0,67994.0,0.0634729]
[1718079247374,0.16414302,67996.0,67993.0,0.007]
[1718079247584,0.01982309,67994.0,67993.0,0.003]
[1718079247858,0.11982309,68000.0,67994.0,0.004]
[1718079248084,0.001,67999.0,67994.0,0.004]
[1718079248305,0.1,68000.0,67995.0,0.17145996]
[1718079248548,0.1,68000.0,67996.0,0.017446]
[1718079248991,0.14431993,67999.0,67994.0,0.002]
[1718079249269,0.01982309,67995.0,67994.0,0.002]
[1718079249513,0.01982309,67995.0,67984.0,0.15367413]
[1718079249514,0.01982309,67985.0,67984.0,0.15367413]
[1718079249719,0.01982309,67985.0,67984.0,0.04907413]
[1718079249934,0.01982309,67985.0,67977.0,0.12217083]
[1718079249935,0.01982309,67985.0,67977.0,0.1046]
[1718079250150,0.00124359,67993.0,67971.0,0.04928074]
[1718079250151,0.01982309,67978.0,67971.0,0.04928074]
[1718079250578,0.01982309,67974.0,67971.0,0.04928074]
[1718079250797,0.01982309,67977.0,67972.0,0.05149027]
[1718079251032,0.01982309,67980.0,67972.0,0.05149027]
[1718079251228,0.01982309,67977.0,67972.0,0.05149027]
[1718079251431,0.01982309,67978.0,67972.0,0.05149027]
[1718079251641,0.001,67978.0,67973.0,0.10915899]
[1718079251856,0.14431993,67979.0,67973.0,0.10915899]
[1718079252067,0.01982309,67990.0,67973.0,0.10915899]
[1718079252272,0.08,67998.0,67973.0,0.10915899]
[1718079252273,0.001,67980.0,67973.0,0.10915899]
[1718079252505,0.14431993,67989.0,67974.0,0.0652359]
[1718079252966,0.02160511,67971.0,67970.0,0.361023]
[1718079253149,0.02160511,67971.0,67970.0,0.461023]
[1718079254419,0.02160511,67971.0,67970.0,0.3179]
[1718079254632,0.02260511,67971.0,67970.0,0.3179]
[1718079255075,0.02260511,67971.0,67970.0,0.2179]
[1718079255503,0.02260511,67971.0,67970.0,0.004]
[1718079255720,0.02260511,67971.0,67970.0,0.007]
[1718079256142,0.02260511,67971.0,67970.0,0.0177]
[1718079256346,0.02260511,67971.0,67970.0,0.0147]
[1718079256556,0.02260511,67971.0,67970.0,0.0177]
[1718079256812,0.02160511,67971.0,67970.0,0.0137]
[1718079257023,0.02160511,67971.0,67970.0,0.0157]
[1718079257234,0.02260511,67971.0,67970.0,0.0157]
[1718079257459,0.02160511,67971.0,67970.0,0.0137]
[1718079257686,0.02260511,67971.0,67970.0,0.0157]
[1718079260172,0.4718,67987.0,67970.0,0.0157]
[1718079260173,0.4718,67987.0,67978.0,0.02]
[1718079260379,0.5518,67998.0,67980.0,0.147101]
[1718079260610,0.5518,67998.0,67981.0,0.1]
[1718079260611,0.14431993,67997.0,67981.0,0.1]
[1718079261456,0.001,67987.0,67981.0,0.1]
[1718079261657,0.001,67987.0,67986.0,0.302]
[1718079261910,0.4718,68005.0,67986.0,0.302]
[1718079262296,0.147054,68003.0,67986.0,0.302]
[1718079263072,0.147054,68003.0,67986.0,0.322]
[1718079263632,0.147054,68003.0,67986.0,0.302]
[1718079263793,0.147054,68003.0,67986.0,0.449088]
[1718079264213,0.07215996,68002.0,67986.0,0.449088]
[1718079264616,0.147054,68003.0,67986.0,0.449088]
[1718079264840,0.147054,68003.0,67987.0,0.147086]
[1718079267288,0.501,68000.0,67987.0,0.147086]
[1718079267663,0.64531993,68000.0,67987.0,0.147086]
[1718079267863,0.07215996,67994.0,67981.0,0.47667516]
[1718079268208,0.511,68000.0,67981.0,0.32957616]
[1718079268209,0.14431993,67993.0,67981.0,0.32957616]
[1718079268383,0.14431993,67993.0,67981.0,0.34957616]
[1718079268586,0.501,68000.0,67987.0,0.147086]
[1718079269002,0.501,68000.0,67989.0,0.147081]
[1718079269164,0.501,68000.0,67989.0,0.02]
[1718079269360,0.501,68000.0,67996.0,0.1765]
[1718079269620,0.5,68000.0,67996.0,0.1765]
[1718079269860,0.5,68000.0,67996.0,0.1965]
[1718079270067,0.5,68000.0,67999.0,0.14706]
[1718079270271,0.5,68000.0,67999.0,0.26706]
[1718079270445,0.5,68000.0,67999.0,0.24706]
[1718079270649,0.5,68000.0,67999.0,0.26706]
[1718079270853,0.1777,68000.0,67999.0,0.26706]
[1718079271026,0.058817,68027.0,67999.0,0.26706]
[1718079271027,0.4718,68025.0,68010.0,0.02]
[1718079271236,0.4718,68025.0,68000.0,0.319]
[1718079271237,0.618787,68033.0,68014.0,0.147028]
[1718079271444,0.14431993,68030.0,68014.0,0.147028]
[1718079272092,0.07215996,68020.0,68008.0,0.147041]
[1718079272305,0.3105,68018.0,68014.0,0.04997054]
[1718079272533,0.14556352,68017.0,68014.0,0.003]
[1718079272918,0.02,68015.0,68014.0,0.003]
[1718079273142,0.66556352,68015.0,68014.0,0.003]
[1718079273553,0.66431993,68015.0,68014.0,0.003]
[1718079273760,0.86431993,68015.0,68014.0,0.003]
[1718079273989,0.147048,68005.0,67990.0,0.43295979]
[1718079274189,0.02,67999.0,67990.0,0.48278675]
[1718079274403,0.147065,67997.0,67990.0,0.04982696]
[1718079274620,0.14556352,67996.0,67990.0,0.04982696]
[1718079274815,0.14556352,67996.0,67980.0,0.2082]
[1718079275021,0.14556352,67996.0,67980.0,0.25758723]
[1718079275248,0.147072,67994.0,67980.0,0.04938723]
[1718079275454,0.14431993,67993.0,67980.0,0.04938723]
[1718079275662,0.147076,67992.0,67980.0,0.04938723]
[1718079275869,0.3248,67983.0,67980.0,0.04938723]
[1718079276088,0.14431993,67982.0,67980.0,0.04938723]
[1718079276285,0.14431993,67982.0,67968.0,0.1022]
[1718079276500,0.14431993,67982.0,67968.0,0.15151319]
[1718079277332,0.14631993,67982.0,67980.0,0.003]
[1718079277751,0.0989,67993.0,67980.0,0.003]
[1718079277948,0.14431993,67992.0,67971.0,0.02]
[1718079278155,0.14431993,67992.0,67973.0,0.147116]
[1718079278558,0.14431993,67992.0,67976.0,0.02]
[1718079278762,0.14431993,67992.0,67975.0,0.02]
[1718079279029,0.14431993,67992.0,67973.0,0.167116]
[1718079279231,0.14431993,67992.0,67974.0,0.02]
[1718079279441,0.14431993,67992.0,67975.0,0.02]
[1718079279605,0.002,67982.0,67975.0,0.02]
[1718079280017,0.14431993,67992.0,67973.0,0.147116]
[1718079280181,0.14431993,67992.0,67973.0,0.152116]
[1718079280383,0.14431993,67992.0,67977.0,0.02]
[1718079280602,0.14431993,67992.0,67976.0,0.002]
[1718079281472,0.07215996,67989.0,67976.0,0.002]
[1718079281715,0.14556352,67988.0,67973.0,0.005]
[1718079282453,0.14556352,67988.0,67973.0,0.002]
[1718079282908,0.14556352,67988.0,67974.0,0.0102]
[1718079283112,0.14556352,67988.0,67976.0,0.005]
[1718079283529,0.14556352,67988.0,67974.0,0.0102]
[1718079283903,0.14431993,67988.0,67974.0,0.0102]
[1718079284563,0.14431993,67988.0,67976.0,0.003]
[1718079284786,0.14431993,67988.0,67974.0,0.0132]
[1718079285613,0.14431993,67988.0,67974.0,0.0102]
[1718079286695,0.14431993,67988.0,67974.0,0.0302]
[1718079286919,0.14431993,67988.0,67974.0,0.0112]
[1718079287165,0.14431993,67988.0,67976.0,0.002]
[1718079287616,0.14431993,67988.0,67974.0,0.0312]
[1718079287846,0.08,67994.0,67974.0,0.0312]
[1718079287847,0.08,67994.0,67977.0,0.07215996]
[1718079288065,0.14431993,67993.0,67980.0,0.147101]
[1718079290010,0.1048,68000.0,67982.0,0.02]
[1718079290220,0.2081,68005.0,67985.0,0.02]
[1718079290449,0.14431993,68004.0,67989.0,0.147082]
[1718079291121,0.14431993,68004.0,67989.0,0.19648684]
[1718079291966,0.14431993,68004.0,67990.0,0.147079]
[1718079292189,0.14431993,68004.0,67991.0,0.147078]
[1718079292833,0.15438755,68009.0,67991.0,0.167078]
[1718079293065,0.15438755,68009.0,67996.0,0.147066]
[1718079293909,0.15438755,68009.0,67997.0,0.147064]
[1718079294571,0.15438755,68009.0,67989.0,0.04940484]
[1718079294572,0.15838755,68009.0,67999.0,0.1116]
[1718079295013,0.15438755,68009.0,68004.0,0.147049]
[1718079295019,0.15438755,68009.0,67999.0,0.1116]
[1718079295020,0.15438755,68009.0,68006.0,0.1764]
[1718079295227,0.15938755,68009.0,68007.0,0.147042]
[1718079296528,0.15938755,68009.0,68008.0,0.16431993]
[1718079296529,0.15438755,68009.0,68008.0,0.16431993]
[1718079296757,0.15438755,68009.0,68008.0,0.77681993]
[1718079297005,0.15438755,68009.0,68008.0,0.55681993]
[1718079297228,0.15438755,68009.0,68008.0,0.57681993]
[1718079297448,0.15438755,68009.0,68008.0,0.55681993]
[1718079297656,0.15438755,68009.0,68008.0,0.57681993]
[1718079298066,0.15438755,68009.0,68008.0,1.03161993]
[1718079298067,0.09458162,68009.0,68008.0,1.03161993]
[1718079298688,0.09458162,68009.0,68008.0,1.03461993]
[1718079299736,0.09458162,68009.0,68008.0,1.03861993]
[1718079299945,0.09458162,68009.0,68008.0,1.03161993]
[1718079300165,0.00086,68034.0,68026.0,0.147002]
[1718079300375,0.00086,68034.0,68031.0,0.146991]
[1718079300590,0.00086,68034.0,68028.0,0.2241]
[1718079300591,0.00086,68034.0,68032.0,0.146989]
[1718079300824,0.29825996,68033.0,68025.0,0.147002]
[1718079301049,0.29825996,68033.0,68011.0,0.04390151]
[1718079301050,0.44257989,68033.0,68020.0,0.04971406]
[1718079301495,0.02,68024.0,68020.0,0.04971406]
[1718079301696,0.01,68021.0,68020.0,0.04971406]
[1718079301939,0.15431993,68021.0,68020.0,0.04971406]
[1718079302175,0.15431993,68021.0,68003.0,0.43295979]
[1718079302176,0.01,68014.0,68003.0,0.43295979]
[1718079302389,0.01,68009.0,68003.0,0.43295979]
[1718079302647,0.01,68009.0,68006.0,0.43295979]
[1718079302847,0.01,68009.0,68008.0,0.005]
[1718079303061,0.01,68009.0,68002.0,0.0549406]
[1718079303477,0.01,68009.0,68002.0,0.0499406]
[1718079303960,0.01,68009.0,67998.0,0.005]
[1718079304371,0.01,68009.0,67997.0,0.152064]
[1718079304586,0.01,68009.0,68002.0,0.004]
[1718079304827,0.01,68009.0,67998.0,0.005]
[1718079305194,0.01,68009.0,67998.0,0.012]
[1718079305387,0.01,68009.0,67998.0,0.008]
[1718079305598,0.01,68009.0,68002.0,0.005]
[1718079305798,0.01,68009.0,68001.0,0.005]
[1718079306000,0.01,68009.0,68002.0,0.005]
[1718079306198,0.01,68009.0,68003.0,0.005]
[1718079306554,0.01,68009.0,68008.0,0.005]
[1718079306741,0.02,68009.0,68008.0,0.005]
[1718079307171,0.02,68009.0,68002.0,0.007]
[1718079307321,0.01331881,68009.0,68004.0,0.005]
[1718079307540,0.01331881,68009.0,68002.0,0.005]
[1718079307805,0.01331881,68009.0,68003.0,0.007]
[1718079308016,0.01331881,68009.0,68003.0,0.003]
[1718079308156,0.01331881,68009.0,68006.0,0.005]
[1718079308358,0.01331881,68009.0,68005.0,0.005]
[1718079308580,0.01331881,68009.0,68002.0,0.004]
[1718079308788,0.01331881,68009.0,68001.0,0.005]
[1718079309265,0.01331881,68009.0,68005.0,0.005]
[1718079309478,0.01331881,68009.0,68006.0,0.005]
[1718079309900,0.01331881,68009.0,68007.0,0.005]
[1718079310108,0.01331881,68009.0,68003.0,0.005]
[1718079310335,0.01331881,68009.0,68003.0,0.004]
[1718079310535,0.01331881,68009.0,68002.0,0.005]
[1718079310735,0.01331881,68009.0,68007.0,0.005]
[1718079310987,0.01931881,68009.0,68006.0,0.005]
[1718079311221,0.01331881,68009.0,68006.0,0.005]
[1718079311635,0.01331881,68009.0,68003.0,0.007]
[1718079311843,0.14431993,68008.0,68003.0,0.003]
[1718079312049,0.37246352,68008.0,68003.0,0.003]
[1718079312417,0.37121993,68008.0,68003.0,0.003]
[1718079312790,0.37121993,68008.0,68000.0,0.005]
[1718079313203,0.37121993,68008.0,68006.0,0.001]
[1718079313410,0.51826093,68008.0,68006.0,0.001]
[1718079313635,0.51826093,68008.0,67996.0,0.005]
[1718079314081,0.51826093,68008.0,67997.0,0.005]
[1718079314502,0.51826093,68008.0,68006.0,0.002]
[1718079314676,0.51826093,68008.0,68006.0,0.003]
[1718079314934,0.51826093,68008.0,68006.0,0.001]
[1718079315163,0.19060355,68007.0,68006.0,0.001]
[1718079315370,0.35792348,68007.0,68006.0,0.001]
[1718079315789,0.65792348,68007.0,68006.0,0.001]
[1718079316232,0.65792348,68007.0,67987.0,0.43295979]
[1718079316233,0.2185,67991.0,67987.0,0.43295979]
[1718079316683,0.2185,67991.0,67987.0,0.04945879]
[1718079316902,0.147057,68001.0,67998.0,0.005]
[1718079317110,0.4718,68002.0,67995.0,0.005]
[1718079317323,0.4718,68002.0,67981.0,0.08215996]
[1718079317324,0.4718,68002.0,67990.0,0.005]
[1718079317535,0.4718,68002.0,67991.0,0.005]
[1718079317778,0.4718,68002.0,67995.0,0.005]
[1718079317994,0.4718,68002.0,67994.0,0.005]
[1718079318404,0.004,68001.0,67994.0,0.005]
[1718079318534,0.4718,68002.0,67994.0,0.005]
[1718079319186,0.4718,68002.0,67995.0,0.005]
[1718079319360,0.4718,68002.0,67994.0,0.005]
[1718079319774,0.4718,68002.0,67995.0,0.005]
[1718079319975,0.003,68001.0,67997.0,0.005]
[1718079320240,0.003,68001.0,67998.0,0.005]
[1718079320465,0.4718,68002.0,67998.0,0.005]
[1718079320678,0.4718,68002.0,67997.0,0.005]
[1718079320827,0.4718,68002.0,67995.0,0.005]
[1718079321033,0.17002961,68008.0,67995.0,0.005]
[1718079321225,0.14431993,68007.0,67998.0,0.005]
[1718079321426,0.003,68001.0,67999.0,0.005]
[1718079321635,0.17002961,68008.0,68004.0,0.005]
[1718079321965,0.02298861,68008.0,68005.0,0.005]
[1718079322173,0.02298861,68008.0,68006.0,0.005]
[1718079322377,0.02298861,68008.0,68004.0,0.005]
[1718079322581,0.02298861,68008.0,68002.0,0.005]
[1718079322822,0.02298861,68008.0,68007.0,0.005]
[1718079323037,0.02298861,68008.0,68006.0,0.005]
[1718079323669,0.02298861,68008.0,68007.0,0.005]
[1718079324099,0.02298861,68008.0,68005.0,0.005]
[1718079324310,0.02298861,68008.0,68007.0,0.005]
[1718079324941,0.02398861,68008.0,68007.0,0.005]
[1718079327370,0.01331881,68009.0,68008.0,0.005]
[1718079327548,0.01331881,68009.0,68008.0,0.152041]
[1718079328017,0.01417881,68009.0,68006.0,0.14969078]
[1718079328227,0.01417881,68009.0,68007.0,0.002]
[1718079328660,0.01417881,68009.0,68007.0,0.102]
[1718079328871,0.01417881,68009.0,68007.0,0.112]
[1718079329252,0.01417881,68009.0,68008.0,0.63832089]
[1718079329494,0.01116425,68009.0,68008.0,0.73832089]
[1718079329717,0.01116425,68009.0,68008.0,0.93832089]
[1718079329925,0.01116425,68009.0,68008.0,1.05482089]
[1718079330133,0.01116425,68009.0,68008.0,1.39377466]
[1718079330336,0.01116425,68009.0,68008.0,1.34990389]
[1718079330517,0.02298096,68025.0,68024.0,0.147006]
[1718079330778,0.00086,68034.0,68031.0,0.14699]
[1718079330965,0.00086,68034.0,68032.0,0.146988]
[1718079331204,0.00086,68034.0,68024.0,0.76561993]
[1718079331205,0.00086,68034.0,68024.0,0.1]
[1718079331438,0.07215996,68027.0,68021.0,0.03472075]
[1718079331681,0.00086,68034.0,68016.0,0.1]
[1718079331914,0.00086,68034.0,68023.0,0.1141]
[1718079332121,0.00086,68034.0,68031.0,0.146991]
[1718079334195,0.00086,68034.0,68028.0,0.2238]
[1718079334196,0.00086,68034.0,68033.0,0.146987]
[1718079334424,0.00186,68034.0,68033.0,0.31130693]
[1718079334642,0.00186,68034.0,68033.0,0.68346689]
[1718079334643,0.001,68034.0,68033.0,0.68346689]
[1718079334856,0.002,68034.0,68033.0,1.31833371]
[1718079335070,0.001,68034.0,68033.0,1.07446689]
[1718079335559,0.002,68034.0,68033.0,1.27446689]
[1718079335804,0.002,68034.0,68033.0,2.54626303]
[1718079336012,0.002,68034.0,68033.0,2.50246089]
[1718079336224,0.001,68034.0,68033.0,2.50246089]
[1718079336459,0.00858,68065.0,68047.0,0.500157]
[1718079336680,0.00858,68065.0,68047.0,0.74447693]
[1718079337149,0.00858,68065.0,68047.0,1.27143689]
[1718079337365,0.00858,68065.0,68047.0,1.08647693]
[1718079337573,0.00858,68065.0,68047.0,0.89927693]
[1718079338012,0.00858,68065.0,68047.0,0.72647693]
[1718079338248,0.00858,68065.0,68047.0,0.72747693]
[1718079338682,0.00858,68065.0,68047.0,0.73947693]
[1718079339148,0.00858,68065.0,68047.0,0.72947693]
[1718079339386,0.00858,68065.0,68047.0,0.74737396]
[1718079339603,0.00858,68065.0,68047.0,0.75437396]
[1718079339806,0.00858,68065.0,68047.0,0.75237396]
[1718079340021,0.00858,68065.0,68047.0,1.51508796]
[1718079340241,0.00858,68065.0,68047.0,3.11467196]
[1718079340490,0.00858,68065.0,68047.0,1.51908796]
[1718079340741,0.00858,68065.0,68047.0,1.51508796]
[1718079340951,0.00858,68065.0,68047.0,1.50293996]
[1718079341180,0.00858,68065.0,68047.0,1.31808796]
[1718079341393,0.00858,68065.0,68047.0,1.51808796]
[1718079341607,0.00858,68065.0,68047.0,1.31808796]
[1718079342072,0.00858,68065.0,68047.0,1.51808796]
[1718079342509,0.00858,68065.0,68047.0,1.31808796]
[1718079342721,0.00858,68065.0,68047.0,1.51808796]
[1718079346178,0.00858,68065.0,68047.0,1.93362796]
[1718079347438,0.00858,68065.0,68047.0,1.94222796]
[1718079349299,0.00858,68065.0,68060.0,0.915587]
[1718079349449,0.00858,68065.0,68060.0,1.70320693]
[1718079349846,0.00858,68065.0,68064.0,0.46692]
[1718079350047,0.00858,68065.0,68064.0,0.76603993]
[1718079350257,0.00858,68065.0,68064.0,1.48760493]
[1718079350460,0.00157787,68065.0,68064.0,1.29708093]
[1718079351637,0.00157787,68065.0,68064.0,1.30008093]
[1718079351790,0.00157787,68065.0,68064.0,1.29708093]
[1718079352183,0.00157787,68065.0,68064.0,1.30008093]
[1718079352440,0.00857,68073.0,68072.0,0.915509]
[1718079352650,0.00857,68073.0,68072.0,1.39622893]
[1718079352845,0.00858,68077.0,68072.0,1.39622893]
[1718079352846,0.00858,68077.0,68076.0,0.915483]
[1718079353070,0.00086,68094.0,68086.0,0.166873]
[1718079353262,0.00086,68094.0,68093.0,0.166857]
[1718079353473,0.00086,68094.0,68093.0,0.57707693]
[1718079353683,0.00086,68094.0,68093.0,0.56707693]
[1718079354996,0.00086,68094.0,68093.0,0.246857]
[1718079355589,0.00086,68094.0,68093.0,0.250857]
[1718079355851,0.00086,68094.0,68093.0,0.253857]
[1718079356060,0.22056,68094.0,68093.0,0.253857]
[1718079356236,0.22056,68094.0,68093.0,0.250857]
[1718079356456,0.22056,68094.0,68093.0,0.150857]
[1718079356685,0.22056,68094.0,68093.0,0.149857]
[1718079356917,0.22056,68094.0,68093.0,0.003]
[1718079357703,0.22056,68094.0,68088.0,0.246868]
[1718079357874,0.22056,68094.0,68093.0,0.003]
[1718079358703,0.22056,68094.0,68093.0,0.006]
[1718079363515,0.00086,68094.0,68093.0,0.152857]
[1718079364442,0.00086,68094.0,68093.0,0.252857]
[1718079365941,0.23006,68094.0,68093.0,0.252857]
[1718079366342,0.00086,68094.0,68093.0,0.39717693]
[1718079366755,0.00086,68094.0,68093.0,0.41717693]
[1718079366962,0.00086,68094.0,68093.0,0.40717693]
[1718079367807,0.00086,68094.0,68093.0,0.55437693]
[1718079368220,0.00086,68094.0,68093.0,0.77437693]
[1718079368442,0.00086,68094.0,68093.0,0.63717693]
[1718079368620,0.00086,68094.0,68093.0,1.43502693]
[1718079368823,0.00086,68094.0,68093.0,1.53424123]
[1718079369308,0.00086,68094.0,68093.0,2.18275623]
[1718079369574,0.00086,68094.0,68093.0,2.52735623]
[1718079369947,0.00086,68094.0,68093.0,2.52435623]
[1718079370173,0.00086,68094.0,68093.0,2.62735623]
[1718079370343,0.00086,68094.0,68093.0,2.62435623]
[1718079371106,0.00859,68103.0,68102.0,0.734192]
[1718079371311,0.00857,68117.0,68116.0,0.673524]
[1718079371517,0.00857,68117.0,68116.0,1.13784393]
[1718079372160,0.00857,68117.0,68116.0,1.28641093]
[1718079372367,0.00857,68117.0,68116.0,1.32251206]
[1718079372797,0.00857,68117.0,68116.0,0.91474393]
[1718079373011,0.00857,68117.0,68116.0,0.96084506]
[1718079373219,0.00857,68117.0,68116.0,1.30228506]
[1718079373661,0.00857,68117.0,68116.0,1.46008506]
[1718079374289,0.00857,68117.0,68116.0,1.65708506]
[1718079374715,0.00857,68117.0,68116.0,1.76668506]
[1718079374932,0.00857,68117.0,68116.0,1.73058393]
[1718079375151,0.00857,68117.0,68116.0,2.35009993]
[1718079375773,0.00857,68117.0,68116.0,2.35309993]
[1718079376203,0.00857,68117.0,68116.0,2.35009993]
[1718079376631,0.00857,68117.0,68116.0,2.35309993]
[1718079376802,1e-08,68117.0,68116.0,2.35309993]
[1718079377007,1e-08,68117.0,68116.0,2.35009993]
[1718079377250,1e-08,68117.0,68116.0,2.01165993]
[1718079377885,1e-08,68117.0,68116.0,1.81465993]
[1718079378088,1e-08,68117.0,68116.0,2.02905096]
[1718079378756,1e-08,68117.0,68116.0,1.39055096]
[1718079378954,1e-08,68117.0,68116.0,1.39355096]
[1718079379178,1e-08,68117.0,68116.0,1.39655096]
[1718079379400,1e-08,68117.0,68116.0,1.37355096]
[1718079379623,1e-08,68117.0,68116.0,0.70513496]
[1718079379857,1e-08,68117.0,68116.0,0.70813496]
[1718079380295,1e-08,68117.0,68116.0,0.70513496]
[1718079380554,1e-08,68117.0,68116.0,0.80213496]
[1718079380770,1e-08,68117.0,68116.0,0.70513496]
[1718079380973,1e-08,68117.0,68116.0,0.70813496]
[1718079381222,1e-08,68117.0,68116.0,0.70513496]
[1718079381436,1e-08,68117.0,68116.0,0.70813496]
[1718079381847,1e-08,68117.0,68116.0,0.70513496]
[1718079382884,1e-08,68117.0,68116.0,0.70213496]
[1718079383109,0.22910001,68117.0,68116.0,0.26419903]
[1718079383321,0.22910001,68117.0,68116.0,0.26719903]
[1718079383971,0.22910001,68117.0,68116.0,0.26419903]
[1718079384393,0.22910001,68117.0,68116.0,0.26719903]
[1718079384834,0.22910001,68117.0,68116.0,0.16719903]
[1718079385041,0.22910001,68117.0,68116.0,0.003]
[1718079385580,0.22910001,68117.0,68106.0,0.01760039]
[1718079385777,0.22910001,68117.0,68116.0,0.003]
[1718079386451,0.22910001,68117.0,68114.0,0.146811]
[1718079386808,0.22910001,68117.0,68103.0,0.04911558]
[1718079386809,0.22910001,68117.0,68108.0,0.146825]
[1718079387021,0.22910001,68117.0,68109.0,0.146822]
[1718079387240,0.23910001,68117.0,68109.0,0.246822]
[1718079387473,0.22910001,68117.0,68110.0,0.146821]
[1718079387703,0.22910001,68117.0,68116.0,0.003]
[1718079388130,0.23910001,68117.0,68114.0,0.002]
[1718079388339,0.01,68115.0,68114.0,0.002]
[1718079388543,0.1228,68116.0,68114.0,0.002]
[1718079389000,0.02,68115.0,68114.0,0.002]
[1718079389213,0.1128,68116.0,68106.0,0.1]
[1718079389425,0.1228,68116.0,68109.0,0.003]
[1718079389629,0.1128,68116.0,68109.0,0.003]
[1718079389833,0.1128,68116.0,68106.0,0.1]
[1718079390089,0.1128,68116.0,68109.0,0.146823]
[1718079390510,0.1128,68116.0,68106.0,0.1]
[1718079390511,0.1128,68116.0,68108.0,0.146825]
[1718079391457,0.1128,68116.0,68109.0,0.000946]